Workbook

Sheet Welcome
A1: ©2005 Seref, Ahuja, Winston

Sheet StockData (hidden)
T1: Jan | U1: 01
T2: Feb | U2: 02
T3: Mar | U3: 03
T4: Apr | U4: 04
T5: May | U5: 05
T6: Jun | U6: 06
T7: Jul | U7: 07
T8: Aug | U8: 08
I9: Buy Allowed? | J9: Sell Allowed? | M9: Risk Free Rate | T9: Sep | U9: 09
I10: Yes | J10: Yes | M10: 0.05 | T10: Oct | U10: 10
I11: Cost to Buy (per share) | J11: Cost to Sell (per share) | K11: Starting Number of Shares | M11: Starting Capital | T11: Nov | U11: 11
B12: S&P Data | I12: 0.03 | J12: 0.06 | K12: 5000 | M12: 100000 | T12: Dec | U12: 12
B13: Date | C13: Price (per share) | D13: Buy Check | E13: Sell Check | G13: Own? | I13: Buy? | J13: Sell? | K13: Number of Shares | M13: Cash Flow | O13: Profit
B14: 1871.01 | C14: 4.44 | O14: =$M$1322 -> 102040.0909
B15: 1871.02 | C15: 4.5
B16: 1871.03 | C16: 4.61
B17: 1871.04 | C17: 4.74
B18: 1871.05 | C18: 4.86
B19: 1871.06 | C19: 4.82
B20: 1871.07 | C20: 4.73
B21: 1871.08 | C21: 4.79
B22: 1871.09 | C22: 4.84
B23: 1871.1 | C23: 4.59
B24: 1871.11 | C24: 4.64
B25: 1871.12 | C25: 4.74
B26: 1872.01 | C26: 4.86
B27: 1872.02 | C27: 4.88
B28: 1872.03 | C28: 5.04
B29: 1872.04 | C29: 5.18
B30: 1872.05 | C30: 5.18
B31: 1872.06 | C31: 5.13
B32: 1872.07 | C32: 5.1
B33: 1872.08 | C33: 5.04
B34: 1872.09 | C34: 4.95
B35: 1872.1 | C35: 4.97
B36: 1872.11 | C36: 4.95
B37: 1872.12 | C37: 5.07
B38: 1873.01 | C38: 5.11
B39: 1873.02 | C39: 5.15
B40: 1873.03 | C40: 5.11
B41: 1873.04 | C41: 5.04
B42: 1873.05 | C42: 5.05
B43: 1873.06 | C43: 4.98
B44: 1873.07 | C44: 4.97
B45: 1873.08 | C45: 4.97
B46: 1873.09 | C46: 4.59
B47: 1873.1 | C47: 4.19
B48: 1873.11 | C48: 4.04
B49: 1873.12 | C49: 4.42
B50: 1874.01 | C50: 4.66
B51: 1874.02 | C51: 4.8
B52: 1874.03 | C52: 4.73
B53: 1874.04 | C53: 4.6
B54: 1874.05 | C54: 4.48
B55: 1874.06 | C55: 4.46
B56: 1874.07 | C56: 4.46
B57: 1874.08 | C57: 4.47
B58: 1874.09 | C58: 4.54
B59: 1874.1 | C59: 4.53
B60: 1874.11 | C60: 4.57
B61: 1874.12 | C61: 4.54
B62: 1875.01 | C62: 4.54
B63: 1875.02 | C63: 4.53
B64: 1875.03 | C64: 4.59
B65: 1875.04 | C65: 4.65
B66: 1875.05 | C66: 4.47
B67: 1875.06 | C67: 4.38
B68: 1875.07 | C68: 4.39
B69: 1875.08 | C69: 4.41
B70: 1875.09 | C70: 4.37
B71: 1875.1 | C71: 4.3
B72: 1875.11 | C72: 4.37
B73: 1875.12 | C73: 4.37
B74: 1876.01 | C74: 4.46
B75: 1876.02 | C75: 4.52
B76: 1876.03 | C76: 4.51
B77: 1876.04 | C77: 4.34
B78: 1876.05 | C78: 4.18
B79: 1876.06 | C79: 4.15
B80: 1876.07 | C80: 4.1
B81: 1876.08 | C81: 3.93
B82: 1876.09 | C82: 3.69
B83: 1876.1 | C83: 3.67
B84: 1876.11 | C84: 3.6
B85: 1876.12 | C85: 3.58
B86: 1877.01 | C86: 3.55
B87: 1877.02 | C87: 3.34
B88: 1877.03 | C88: 3.17
B89: 1877.04 | C89: 2.94
B90: 1877.05 | C90: 2.94
B91: 1877.06 | C91: 2.73
B92: 1877.07 | C92: 2.85
B93: 1877.08 | C93: 3.05
B94: 1877.09 | C94: 3.24
B95: 1877.1 | C95: 3.31
B96: 1877.11 | C96: 3.26
B97: 1877.12 | C97: 3.25
B98: 1878.01 | C98: 3.25
B99: 1878.02 | C99: 3.18
B100: 1878.03 | C100: 3.24
B101: 1878.04 | C101: 3.33
B102: 1878.05 | C102: 3.34
B103: 1878.06 | C103: 3.41
B104: 1878.07 | C104: 3.48
B105: 1878.08 | C105: 3.45
B106: 1878.09 | C106: 3.52
B107: 1878.1 | C107: 3.48
B108: 1878.11 | C108: 3.47
B109: 1878.12 | C109: 3.45
B110: 1879.01 | C110: 3.58
B111: 1879.02 | C111: 3.71
B112: 1879.03 | C112: 3.65
B113: 1879.04 | C113: 3.77
B114: 1879.05 | C114: 3.94
B115: 1879.06 | C115: 3.96
B116: 1879.07 | C116: 4.04
B117: 1879.08 | C117: 4.07
B118: 1879.09 | C118: 4.22
B119: 1879.1 | C119: 4.68
B120: 1879.11 | C120: 4.93
B121: 1879.12 | C121: 4.92
B122: 1880.01 | C122: 5.11
B123: 1880.02 | C123: 5.2
B124: 1880.03 | C124: 5.3
B125: 1880.04 | C125: 5.18
B126: 1880.05 | C126: 4.77
B127: 1880.06 | C127: 4.79
B128: 1880.07 | C128: 5.01
B129: 1880.08 | C129: 5.19
B130: 1880.09 | C130: 5.18
B131: 1880.1 | C131: 5.33
B132: 1880.11 | C132: 5.61
B133: 1880.12 | C133: 5.84
B134: 1881.01 | C134: 6.19
B135: 1881.02 | C135: 6.17
B136: 1881.03 | C136: 6.24
B137: 1881.04 | C137: 6.22
B138: 1881.05 | C138: 6.5
B139: 1881.06 | C139: 6.58
B140: 1881.07 | C140: 6.35
B141: 1881.08 | C141: 6.2
B142: 1881.09 | C142: 6.25
B143: 1881.1 | C143: 6.15
B144: 1881.11 | C144: 6.19
B145: 1881.12 | C145: 6.01
B146: 1882.01 | C146: 5.92
B147: 1882.02 | C147: 5.79
B148: 1882.03 | C148: 5.78
B149: 1882.04 | C149: 5.78
B150: 1882.05 | C150: 5.71
B151: 1882.06 | C151: 5.68
B152: 1882.07 | C152: 6
B153: 1882.08 | C153: 6.18
B154: 1882.09 | C154: 6.24
B155: 1882.1 | C155: 6.07
B156: 1882.11 | C156: 5.81
B157: 1882.12 | C157: 5.84
B158: 1883.01 | C158: 5.81
B159: 1883.02 | C159: 5.68
B160: 1883.03 | C160: 5.75
B161: 1883.04 | C161: 5.87
B162: 1883.05 | C162: 5.77
B163: 1883.06 | C163: 5.82
B164: 1883.07 | C164: 5.73
B165: 1883.08 | C165: 5.47
B166: 1883.09 | C166: 5.53
B167: 1883.1 | C167: 5.38
B168: 1883.11 | C168: 5.46
B169: 1883.12 | C169: 5.34
B170: 1884.01 | C170: 5.18
B171: 1884.02 | C171: 5.32
B172: 1884.03 | C172: 5.3
B173: 1884.04 | C173: 5.06
B174: 1884.05 | C174: 4.65
B175: 1884.06 | C175: 4.46
B176: 1884.07 | C176: 4.46
B177: 1884.08 | C177: 4.74
B178: 1884.09 | C178: 4.59
B179: 1884.1 | C179: 4.44
B180: 1884.11 | C180: 4.35
B181: 1884.12 | C181: 4.34
B182: 1885.01 | C182: 4.24
B183: 1885.02 | C183: 4.37
B184: 1885.03 | C184: 4.38
B185: 1885.04 | C185: 4.37
B186: 1885.05 | C186: 4.32
B187: 1885.06 | C187: 4.3
B188: 1885.07 | C188: 4.46
B189: 1885.08 | C189: 4.71
B190: 1885.09 | C190: 4.65
B191: 1885.1 | C191: 4.92
B192: 1885.11 | C192: 5.24
B193: 1885.12 | C193: 5.2
B194: 1886.01 | C194: 5.2
B195: 1886.02 | C195: 5.3
B196: 1886.03 | C196: 5.19
B197: 1886.04 | C197: 5.12
B198: 1886.05 | C198: 5.02
B199: 1886.06 | C199: 5.25
B200: 1886.07 | C200: 5.33
... 1395 more rows

Sheet OutputA (hidden)
B11: Risk Rate | E11: Time Horizon
B12: 5
B13: =B12/100 -> 0.05 | E13: Year | F13: Month | H13: At Max Profit | I13: 102040.09
D14: From: | H14: Number of Buys | I14: 48
D15: To: | H15: Number of Sales | I15: 48
B18: Possible Profits
B19: X , Y | C19: 5 | D19: 6 | E19: 7 | F19: 8 | G19: 9 | H19: 10
B20: 5 | C20: 10233.79 | D20: 7079.46 | E20: 6473.93 | F20: 95934.6 | G20: 62661.52 | H20: 79071.97
B21: 6 | C21: 8563.46 | D21: 7657.79 | E21: 7411.76 | F21: 102040.09 | G21: 66421.09 | H21: 95071.75
B22: 7 | C22: 6447.52 | D22: 6015.4 | E22: 5570.67 | F22: 74798.37 | G22: 46452.35 | H22: 59905.42
B23: 8 | C23: 6282.46 | D23: 5864.61 | E23: 5547.53 | F23: 74487.71 | G23: 49013.22 | H23: 63208.94
B24: 9 | C24: 7222.25 | D24: 7105.53 | E24: 5552.11 | F24: 92524.69 | G24: 60874.79 | H24: 80833.86
B25: 10 | C25: 7203.04 | D25: 7518.56 | E25: 6884.64 | F25: 85553.75 | G25: 57997.05 | H25: 87176.47

Sheet OutputB (hidden)
B11: Time Horizon | D11: SNP (Buy and Sell) | G11: Buy and Hold (No Sell) | I11: Sell and Hold (No Buy)
B12: From | C12: To | D12: X | E12: Y | F12: Profit | G12: X | H12: Profit | I12: Y | J12: Profit
